fUST/lending_fUST_20240319
["ID","MTS","AMOUNT","RATE_DAILY","PERIOD"]
[319508187,1710813043858,-500.0,0.00020997,2]
[319508189,1710813043867,-343.78477731,0.00020997,2]
[319508191,1710813043876,-500.0,0.00020997,2]
[319508193,1710813043885,-500.0,0.00020997,2]
[319508195,1710813043894,-500.0,0.00020997,2]
[319508197,1710813043902,-500.0,0.00020997,2]
[319508199,1710813043912,-500.0,0.00020997,2]
[319508201,1710813043921,-553.6,0.00020997,2]
[319508203,1710813043929,-553.6,0.00020997,2]
[319508205,1710813043939,-500.0,0.00020997,2]
[319508207,1710813043947,-500.0,0.00020997,2]
[319508209,1710813043956,-500.0,0.00020997,2]
[319508211,1710813043965,-500.0,0.00020997,2]
[319508213,1710813043975,-372.74036807,0.00020997,2]
[319508215,1710813043984,-500.0,0.00020997,2]
[319508217,1710813043993,-500.0,0.00020997,2]
[319508219,1710813044001,-500.0,0.00020997,2]
[319508221,1710813044013,-664.96,0.00020997,2]
[319508223,1710813044023,-500.0,0.00020997,2]
[319508225,1710813044031,-664.96,0.00020997,2]
[319508227,1710813044041,-500.0,0.00020997,2]
[319508229,1710813044050,-664.96,0.00020997,2]
[319508231,1710813044059,-610.12979184,0.00020997,2]
[319508233,1710813044068,-544.13,0.00020997,2]
[319508235,1710813044077,-544.13,0.00020997,2]
[319508237,1710813044087,-544.13,0.00020997,2]
[319508239,1710813044096,-2601.08142185,0.00020998,2]
[319508241,1710813044105,-309.96436471,0.00020998,2]
[319508243,1710813044114,-164.35290458,0.00020998,2]
[319508245,1710813044123,-1492.32994516,0.00020998,2]
[319508246,1710813044134,-675.99776772,0.00020998,2]
[319508248,1710813044145,-155.31767229,0.00020998,2]
[319508250,1710813044155,-155.06960155,0.00020998,2]
[319508252,1710813044164,-155.03128496,0.00020998,2]
[319508254,1710813044173,-3441.66007754,0.00020998,2]
[319508257,1710813044182,-1480.00917597,0.00020998,2]
[319508259,1710813044191,-155.37882534,0.00020998,2]
[319508260,1710813044201,-200.27995414,0.00020998,2]
[319508262,1710813044210,-253.11873173,0.00020998,2]
[319508265,1710813044219,-156.49249489,0.00020998,2]
[319508266,1710813044229,-525.92391318,0.00020998,2]
[319508275,1710813044238,-291.50501853,0.00020998,2]
[319508276,1710813044327,-155.64498742,0.00020998,2]
[319508277,1710813044337,-156.27620802,0.00020998,2]
[319508279,1710813044349,-155.90727247,0.00020998,2]
[319508281,1710813044358,-165.8465471,0.00020998,2]
[319508282,1710813044367,-586.50813745,0.00020998,2]
[319508283,1710813044377,-168.18148197,0.00020998,2]
[319508285,1710813044386,-180.33719589,0.00020998,2]
[319508286,1710813044394,-155.21047819,0.00020998,2]
[319508288,1710813044403,-204.98847702,0.00020998,2]
[319508289,1710813044412,-295.84558888,0.00020998,2]
[319508290,1710813044426,-1569.60958846,0.00020998,2]
[319508291,1710813044436,-220.43602277,0.00020998,2]
[319508292,1710813044444,-843.54168757,0.00020998,2]
[319508293,1710813044458,-618.16623785,0.00020998,2]
[319508294,1710813044467,-192.07992266,0.00020998,2]
[319508295,1710813044477,-163.86416751,0.00020998,2]
[319508296,1710813044486,-155.20214893,0.00020998,2]
[319508297,1710813044496,-209.01843959,0.00020998,2]
[319508298,1710813044506,-627.80771743,0.00020998,2]
[319508299,1710813044519,-236.58225726,0.00020998,2]
[319508300,1710813044529,-500.43098097,0.00020998,2]
[319508301,1710813044538,-501.2748531,0.00020998,2]
[319508302,1710813044550,-500.0,0.00020998,2]
[319508303,1710813044559,-500.0,0.00020998,2]
[319508304,1710813044568,-500.0,0.00020998,2]
[319508305,1710813044578,-500.0,0.00020998,2]
[319508306,1710813044586,-500.0,0.00020998,2]
[319508307,1710813044595,-500.0,0.00020998,2]
[319508308,1710813044604,-500.0,0.00020998,2]
[319508309,1710813044614,-500.0,0.00020998,2]
[319508310,1710813044624,-500.59163941,0.00020998,2]
[319508311,1710813044634,-501.12296092,0.00020998,2]
[319508312,1710813044643,-500.44925309,0.00020998,2]
[319508313,1710813044652,-500.0,0.00020998,2]
[319508314,1710813044661,-500.0,0.00020998,2]
[319508315,1710813044671,-228.81070462,0.00020998,2]
[319508316,1710813044680,-500.0,0.00020998,2]
[319508317,1710813044690,-500.0,0.00020998,2]
[319508318,1710813044700,-500.0,0.00020998,2]
[319508319,1710813044709,-500.0,0.00020998,2]
[319508320,1710813044718,-500.0,0.00020998,2]
[319508321,1710813044727,-503.0880713,0.00020998,2]
[319508322,1710813044736,-500.61289939,0.00020998,2]
[319508323,1710813044746,-270.19307596,0.00020998,2]
[319508324,1710813044755,-173.17388478,0.00020998,2]
[319508325,1710813044768,-670.75203591,0.00020998,2]
[319508326,1710813044778,-155.64013296,0.00020998,2]
[319508327,1710813044787,-500.0,0.00020998,2]
[319508328,1710813044797,-500.0,0.00020998,2]
[319508329,1710813044806,-500.0,0.00020998,2]
[319508330,1710813044815,-598.37503437,0.00020998,2]
[319508331,1710813044824,-265.41835054,0.00020998,2]
[319508332,1710813044833,-155.74429442,0.00020998,2]
[319508333,1710813044843,-324.68206694,0.00020998,2]
[319508334,1710813044852,-500.0,0.00020998,2]
[319508336,1710813044861,-500.0,0.00020998,2]
[319508338,1710813044870,-500.0,0.00020998,2]
[319508340,1710813044879,-430.74730994,0.00020998,2]
[319508341,1710813044888,-500.0,0.00020998,2]
[319508343,1710813044897,-150.00532553,0.00020998,2]
[319508344,1710813044906,-500.0,0.00020998,2]
[319508346,1710813044915,-450.81513501,0.00020998,2]
[319508348,1710813044925,-280.69659346,0.00020998,2]
[319508350,1710813044933,-612.16551892,0.00020998,2]
[319508351,1710813044942,-502.46512599,0.00020998,2]
[319508353,1710813044952,-500.0,0.00020998,2]
[319508355,1710813044961,-500.0,0.00020998,2]
[319508357,1710813044970,-500.0,0.00020998,2]
[319508358,1710813044980,-500.0,0.00020998,2]
[319508359,1710813044989,-500.0,0.00020998,2]
[319508360,1710813044998,-500.0,0.00020998,2]
[319508361,1710813045007,-500.0,0.00020998,2]
[319508362,1710813045019,-501.1148691,0.00020998,2]
[319508364,1710813045028,-500.0,0.00020998,2]
[319508366,1710813045037,-500.0,0.00020998,2]
[319508368,1710813045046,-500.0,0.00020998,2]
[319508369,1710813045055,-500.0,0.00020998,2]
[319508370,1710813045064,-500.0,0.00020998,2]
[319508371,1710813045073,-500.0,0.00020998,2]
[319508372,1710813045083,-403.47308364,0.00020998,2]
[319508373,1710813045092,-151.0,0.00020998,2]
[319508374,1710813045101,-151.0,0.00020998,2]
[319508375,1710813045110,-500.0,0.00020998,2]
[319508376,1710813045119,-500.0,0.00020998,2]
[319508378,1710813045128,-500.0,0.00020998,2]
[319508380,1710813045137,-500.0,0.00020998,2]
[319508381,1710813045147,-503.06419852,0.00020998,2]
[319508382,1710813045156,-337.44642297,0.00020998,2]
[319508383,1710813045164,-500.0,0.00020998,2]
[319508384,1710813045173,-501.64549072,0.00020998,2]
[319508385,1710813045182,-500.0,0.00020998,2]
[319508386,1710813045191,-500.0,0.00020998,2]
[319508387,1710813045199,-457.36246754,0.00020998,2]
[319508388,1710813045208,-512.45743565,0.00020998,2]
[319508389,1710813045217,-500.0,0.00020998,2]
[319508390,1710813045226,-500.0,0.00020998,2]
[319508391,1710813045234,-500.0,0.00020998,2]
[319508392,1710813045243,-500.0,0.00020998,2]
[319508393,1710813045251,-231.01375757,0.00020998,2]
[319508394,1710813045264,-297.99684732,0.00020998,2]
[319508395,1710813045272,-500.0,0.00020998,2]
[319508396,1710813045281,-500.70015587,0.00020998,2]
[319508397,1710813045290,-502.31796869,0.00020998,2]
[319508398,1710813045299,-502.2580271,0.00020998,2]
[319508399,1710813045308,-269.21616022,0.00020998,2]
[319508400,1710813045316,-500.0,0.00020998,2]
[319508401,1710813045325,-570.39230664,0.00020998,2]
[319508402,1710813045333,-151.873166,0.00020998,2]
[319508404,1710813045343,-549.27,0.00020998,2]
[319508405,1710813045352,-549.27,0.00020998,2]
[319508407,1710813045361,-500.0,0.00020998,2]
[319508409,1710813045369,-500.32198374,0.00020998,2]
[319508411,1710813045379,-500.0,0.00020998,2]
[319508413,1710813045388,-500.77478157,0.00020998,2]
[319508414,1710813045397,-500.0,0.00020998,2]
[319508416,1710813045406,-500.0,0.00020998,2]
[319508418,1710813045415,-500.0,0.00020998,2]
[319508420,1710813045424,-500.0,0.00020998,2]
[319508422,1710813045438,-500.0,0.00020998,2]
[319508424,1710813045447,-151.078779,0.00020998,2]
[319508425,1710813045456,-500.0,0.00020998,2]
[319508426,1710813045465,-500.0,0.00020998,2]
[319508428,1710813045475,-500.0,0.00020998,2]
[319508430,1710813045486,-500.0,0.00020998,2]
[319508433,1710813045495,-553.6,0.00020998,2]
[319508435,1710813045507,-553.6,0.00020998,2]
[319508437,1710813045520,-591.16541084,0.00020998,2]
[319508439,1710813045529,-500.0,0.00020998,2]
[319508441,1710813045538,-506.32272264,0.00020998,2]
[319508444,1710813045547,-500.0,0.00020998,2]
[319508448,1710813045556,-500.0,0.00020998,2]
[319508450,1710813045566,-500.0,0.00020998,2]
[319508451,1710813045575,-352.44222052,0.00020998,2]
[319508452,1710813045584,-664.96,0.00020998,2]
[319508453,1710813045593,-664.96,0.00020998,2]
[319508454,1710813045603,-544.13,0.00020998,2]
[319508455,1710813045612,-544.13,0.00020998,2]
[319508456,1710813045621,-343501.89939894,0.00020999,2]
[319508457,1710813045631,-209.21017173,0.00020999,2]
[319508458,1710813045640,-500.0,0.00020999,2]
[319508459,1710813045649,-500.0,0.00020999,2]
[319508460,1710813045658,-500.0,0.00020999,2]
[319508461,1710813045667,-213.85534508,0.00020999,2]
[319508462,1710813045676,-232.62967786,0.00020999,2]
[319508463,1710813045685,-500.0,0.00020999,2]
[319508464,1710813045694,-500.0,0.00020999,2]
[319508465,1710813045703,-500.0,0.00020999,2]
[319508466,1710813045712,-504.6546566,0.00020999,2]
[319508467,1710813045722,-504.19720594,0.00020999,2]
[319508468,1710813045731,-500.0,0.00020999,2]
[319508469,1710813045740,-500.0,0.00020999,2]
[319508470,1710813045750,-500.0,0.00020999,2]
[319508471,1710813045759,-607.8023828,0.00020999,2]
[319508472,1710813045771,-500.0,0.00020999,2]
[319508473,1710813045781,-500.0,0.00020999,2]
[319508474,1710813045790,-500.0,0.00020999,2]
[319508475,1710813045801,-500.0,0.00020999,2]
[319508476,1710813045810,-500.0,0.00020999,2]
[319508477,1710813045819,-504.32106993,0.00020999,2]
[319508478,1710813045828,-500.0,0.00020999,2]
[319508479,1710813045838,-500.0,0.00020999,2]
[319508480,1710813045846,-503.56415919,0.00020999,2]
[319508481,1710813045855,-500.0,0.00020999,2]
[319508482,1710813045864,-500.0,0.00020999,2]
[319508483,1710813045873,-502.32258562,0.00020999,2]
[319508484,1710813045882,-621.21180474,0.00020999,2]
[319508485,1710813045891,-503.28950163,0.00020999,2]
[319508486,1710813045900,-500.0,0.00020999,2]
[319508488,1710813045909,-500.0,0.00020999,2]
[319508490,1710813045918,-613.82623322,0.00020999,2]
[319508492,1710813045927,-151.0,0.00020999,2]
[319508495,1710813045947,-227.704774,0.00020999,2]
[319508497,1710813045957,-500.0,0.00020999,2]
[319508499,1710813045970,-500.0,0.00020999,2]
[319508501,1710813045980,-500.0,0.00020999,2]
[319508503,1710813045989,-500.0,0.00020999,2]
[319508505,1710813045999,-500.0,0.00020999,2]
[319508508,1710813046008,-500.0,0.00020999,2]
[319508510,1710813046020,-500.0,0.00020999,2]
[319508512,1710813046029,-500.0,0.00020999,2]
[319508513,1710813046039,-500.0,0.00020999,2]
[319508515,1710813046048,-500.0,0.00020999,2]
[319508517,1710813046058,-500.0,0.00020999,2]
[319508520,1710813046067,-500.0,0.00020999,2]
[319508522,1710813046077,-240.42580299,0.00020999,2]
[319508523,1710813046088,-500.0,0.00020999,2]
[319508526,1710813046098,-640.77962121,0.00020999,2]
[319508528,1710813046108,-500.0,0.00020999,2]
[319508530,1710813046117,-500.0,0.00020999,2]
[319508532,1710813046127,-390.11514482,0.00020999,2]
[319508534,1710813046137,-549.27,0.00020999,2]
[319508535,1710813046147,-549.27,0.00020999,2]
[319508538,1710813046157,-549.27,0.00020999,2]
[319508540,1710813046166,-549.27,0.00020999,2]
[319508542,1710813046176,-549.27,0.00020999,2]
[319508543,1710813046185,-549.27,0.00020999,2]
[319508545,1710813046195,-549.27,0.00020999,2]
[319508546,1710813046205,-549.27,0.00020999,2]
[319508547,1710813046215,-549.27,0.00020999,2]
[319508548,1710813046224,-549.27,0.00020999,2]
[319508549,1710813046234,-549.27,0.00020999,2]
[319508550,1710813046245,-549.27,0.00020999,2]
[319508551,1710813046254,-549.27,0.00020999,2]
[319508552,1710813046267,-549.27,0.00020999,2]
[319508553,1710813046277,-549.27,0.00020999,2]
[319508554,1710813046287,-549.27,0.00020999,2]
[319508555,1710813046296,-549.27,0.00020999,2]
[319508556,1710813046305,-549.27,0.00020999,2]
[319508557,1710813046314,-549.27,0.00020999,2]
[319508558,1710813046324,-549.50032778,0.00020999,2]
[319508559,1710813046333,-500.0,0.00020999,2]
[319508560,1710813046342,-500.0,0.00020999,2]
[319508561,1710813046352,-500.0,0.00020999,2]
[319508562,1710813046361,-500.0,0.00020999,2]
[319508563,1710813046371,-500.0,0.00020999,2]
[319508564,1710813046380,-500.0,0.00020999,2]
[319508565,1710813046389,-500.0,0.00020999,2]
[319508566,1710813046399,-500.0,0.00020999,2]
[319508567,1710813046408,-500.0,0.00020999,2]
[319508568,1710813046417,-500.0,0.00020999,2]
[319508569,1710813046427,-500.0,0.00020999,2]
[319508570,1710813046436,-500.0,0.00020999,2]
[319508571,1710813046446,-500.0,0.00020999,2]
[319508572,1710813046457,-500.0,0.00020999,2]
[319508573,1710813046467,-500.0,0.00020999,2]
[319508574,1710813046477,-500.0,0.00020999,2]
[319508575,1710813046486,-500.0,0.00020999,2]
[319508576,1710813046497,-500.0,0.00020999,2]
[319508577,1710813046507,-358.01889719,0.00020999,2]
[319508578,1710813046519,-505.97644364,0.00020999,2]
[319508579,1710813046531,-500.0,0.00020999,2]
[319508580,1710813046541,-500.0,0.00020999,2]
[319508581,1710813046550,-640.99276998,0.00020999,2]
[319508582,1710813046561,-500.0,0.00020999,2]
[319508583,1710813046570,-500.0,0.00020999,2]
[319508584,1710813046581,-501.71177284,0.00020999,2]
[319508585,1710813046591,-553.6,0.00020999,2]
[319508586,1710813046601,-553.6,0.00020999,2]
[319508587,1710813046610,-553.6,0.00020999,2]
[319508588,1710813046620,-553.6,0.00020999,2]
[319508598,1710813046733,-553.6,0.00020999,2]
[319508600,1710813046742,-553.6,0.00020999,2]
[319508601,1710813046752,-553.6,0.00020999,2]
[319508603,1710813046761,-553.6,0.00020999,2]
[319508605,1710813046772,-553.6,0.00020999,2]
[319508606,1710813046781,-553.6,0.00020999,2]
[319508608,1710813046790,-553.6,0.00020999,2]
[319508610,1710813046798,-553.6,0.00020999,2]
[319508611,1710813046807,-553.6,0.00020999,2]
[319508613,1710813046816,-553.6,0.00020999,2]
[319508615,1710813046826,-553.6,0.00020999,2]
[319508616,1710813046835,-553.6,0.00020999,2]
[319508617,1710813046844,-553.6,0.00020999,2]
[319508618,1710813046853,-553.6,0.00020999,2]
[319508619,1710813046876,-553.6,0.00020999,2]
[319508620,1710813046886,-553.80846489,0.00020999,2]
[319508621,1710813046895,-500.0,0.00020999,2]
[319508622,1710813046904,-500.0,0.00020999,2]
[319508623,1710813046914,-500.0,0.00020999,2]
[319508624,1710813046923,-500.0,0.00020999,2]
[319508625,1710813046933,-500.0,0.00020999,2]
[319508626,1710813046942,-421.24071913,0.00020999,2]
[319508627,1710813046951,-664.96,0.00020999,2]
[319508628,1710813046960,-664.96,0.00020999,2]
[319508629,1710813046969,-664.96,0.00020999,2]
[319508630,1710813046978,-664.96,0.00020999,2]
[319508631,1710813046988,-664.96,0.00020999,2]
[319508632,1710813046997,-664.96,0.00020999,2]
[319508633,1710813047008,-664.96,0.00020999,2]
[319508634,1710813047019,-664.96,0.00020999,2]
[319508635,1710813047028,-664.96,0.00020999,2]
[319508636,1710813047037,-664.96,0.00020999,2]
[319508637,1710813047046,-664.96,0.00020999,2]
[319508638,1710813047055,-664.96,0.00020999,2]
[319508639,1710813047064,-664.96,0.00020999,2]
[319508640,1710813047073,-664.96,0.00020999,2]
[319508641,1710813047082,-664.96,0.00020999,2]
[319508642,1710813047091,-544.13,0.00020999,2]
[319508643,1710813047100,-664.96,0.00020999,2]
[319508644,1710813047110,-544.13,0.00020999,2]
[319508645,1710813047120,-664.96,0.00020999,2]
[319508646,1710813047131,-664.96,0.00020999,2]
[319508647,1710813047140,-544.13,0.00020999,2]
[319508648,1710813047149,-665.17753383,0.00020999,2]
[319508649,1710813047158,-544.13,0.00020999,2]
[319508650,1710813047167,-544.13,0.00020999,2]
[319508651,1710813047176,-544.13,0.00020999,2]
[319508652,1710813047185,-544.13,0.00020999,2]
[319508653,1710813047194,-544.13,0.00020999,2]
[319508654,1710813047204,-544.13,0.00020999,2]
[319508655,1710813047213,-544.13,0.00020999,2]
[319508656,1710813047221,-544.13,0.00020999,2]
[319508657,1710813047230,-544.13,0.00020999,2]
[319508658,1710813047240,-544.13,0.00020999,2]
[319508659,1710813047249,-544.13,0.00020999,2]
[319508660,1710813047258,-544.13,0.00020999,2]
[319508661,1710813047271,-544.13,0.00020999,2]
[319508662,1710813047280,-544.13,0.00020999,2]
[319508663,1710813047289,-224213.60807339,0.00021,5]
[319508664,1710813047334,-2619.61864813,0.00021,5]
[319508665,1710813047378,-405.6392842,0.00020998,2]
[319508666,1710813047387,-544.13,0.00020999,2]
[319508667,1710813047396,-544.20221327,0.00020999,2]
[319508668,1710813047405,-5119.92850254,0.00021,5]
[319508669,1710813054107,551.61187454,0.000189,2]
[319508670,1710813060783,155.14496366,0.00018841,2]
[319508671,1710813078713,194.75703045,0.000189,2]
[319508695,1710813355319,367.74124969,0.000189,2]
[319508697,1710813656537,245.16083313,0.000189,2]
[319508810,1710813957703,163.44055542,0.000189,2]
[319508845,1710813998178,-209.506052,0.00019329,2]
[319508846,1710813998200,-3503.44419501,0.00019468,2]
[319508847,1710813998223,-4065.42995498,0.00019469,2]
[319508896,1710814232525,-184.010942,0.00019775,2]
[319508898,1710814232534,-3698.82974644,0.00019775,2]
[319508902,1710814232547,-490.5000166,0.00019775,2]
[319509209,1710814238435,-16818.34016706,0.00019775,2]
[319509211,1710814238445,-1569.60958846,0.0002,2]
[319509213,1710814238455,-155.0,0.00020548,2]
[319509215,1710814238465,-1003.79169763,0.00020753,2]
[319509217,1710814238474,-286.87773829,0.00020899,2]
[319509219,1710814238483,-18835.2107419,0.000209,2]
[319509221,1710814238492,-24268.0,0.000209,2]
[319509222,1710814238501,-189.36065969,0.000209,2]
[319509224,1710814238510,-189.36065967,0.00020966,2]
[319509226,1710814238520,-500.0,0.00020997,2]
[319509228,1710814238529,-302.55076469,0.00020997,2]
[319509231,1710814238539,-428.78877956,0.00020998,2]
[319509234,1710814238548,-277.45257937,0.00020998,2]
[319509237,1710814238557,-326.38143345,0.00020998,2]
[319509239,1710814238566,-290.88316788,0.00020998,2]
[319509241,1710814238575,-1264.57664428,0.00020998,2]
[319509243,1710814238584,-187.8186761,0.00020999,2]
[319509245,1710814238593,-1097.60906143,0.00020999,2]
[319509247,1710814238603,-1956.84789488,0.00020999,2]
[319509249,1710814238612,-177.57274636,0.00020999,2]
[319509251,1710814238622,-748.56889485,0.00020999,2]
[319509253,1710814238631,-155.80068588,0.00020999,2]
[319509255,1710814238640,-1083.67520015,0.00020999,2]
[319509257,1710814238649,-500.0,0.00020999,2]
[319509259,1710814238658,-500.0,0.00020999,2]
[319509261,1710814238667,-500.0,0.00020999,2]
[319509263,1710814238676,-500.0,0.00020999,2]
[319509264,1710814238692,-500.0,0.00020999,2]
[319509266,1710814238702,-500.0,0.00020999,2]
[319509268,1710814238711,-500.0,0.00020999,2]
[319509270,1710814238722,-500.0,0.00020999,2]
[319509272,1710814238731,-500.0,0.00020999,2]
[319509274,1710814238742,-500.0,0.00020999,2]
[319509276,1710814238751,-500.0,0.00020999,2]
[319509278,1710814238761,-500.0,0.00020999,2]
[319509280,1710814238772,-500.0,0.00020999,2]
[319509282,1710814238781,-500.0,0.00020999,2]
[319509284,1710814238796,-372.0,0.00020999,2]
[319509286,1710814238806,-262.35665096,0.00020999,2]
[319509288,1710814238815,-43943.42512834,0.00021,5]
[319509290,1710814238827,-556.78803989,0.00021,5]
[319509689,1710814243673,-7778.38020199,0.00021,5]
[319509991,1710814246546,-1342.51813929,0.00021,5]
[319509993,1710814246558,-329.0,0.00021,5]
[319510271,1710814259195,150.0,0.000189,2]
[319510272,1710814560588,150.0,0.000189,2]
[319510496,1710815438576,-500.0,0.00019123,2]
[319510498,1710815438588,-803.7394883,0.00019123,2]
[319510500,1710815438597,-193.202417,0.00019178,2]
[319510502,1710815438607,-209.506053,0.00019178,2]
[319510504,1710815438616,-250.0,0.00019206,2]
[319510507,1710815438625,-184.010942,0.00019253,2]
[319510509,1710815438634,-402.141007,0.00019297,2]
[319510510,1710815438644,-199.32029378,0.00019547,2]
[319510511,1710815438656,-193.2024173,0.00019647,2]
[319510512,1710815438665,-1569.60958846,0.0002,2]
[319510513,1710815438674,-10485.71184159,0.0002,5]
[319510514,1710815438695,-2243.01184201,0.0002,5]
[319510515,1710815438704,-155.0,0.00020548,2]
[319510516,1710815438713,-3530.12310153,0.000209,2]
[319510517,1710815438721,-1000.0,0.000209,2]
[319510518,1710815438730,-151.48852779,0.000209,2]
[319510519,1710815438739,-151.48852773,0.00020967,2]
[319510520,1710815438748,-715.87832202,0.00020998,2]
[319510521,1710815438757,-385.6323868,0.00020999,2]
[319516336,1710816510723,200.0,0.00019,2]
[319516424,1710816632818,-209.506052,0.00019659,2]
[319516427,1710816632828,-746.60549397,0.0002,2]
[319516430,1710816632838,-155.0,0.00020548,2]
[319516433,1710816632847,-1382.95621485,0.00020998,2]
[319516435,1710816632855,-3503.44419501,0.00020998,2]
[319516436,1710816632864,-382.98616348,0.00020998,2]
[319516438,1710816632878,-389.64546422,0.00020998,2]
[319516439,1710816632887,-204.98847702,0.00020998,2]
[319516440,1710816632896,-1149.46415486,0.00020998,2]
[319516441,1710816632905,-252.30418672,0.00020998,2]
[319516442,1710816632914,-27384.09238536,0.00020998,2]
[319516443,1710816632922,-9194.07740161,0.00020999,2]
[319516444,1710816632931,-522.52680238,0.00020999,2]
[319516445,1710816632940,-275.63549555,0.00020999,2]
[319516446,1710816632949,-500.0,0.00020999,2]
[319516447,1710816632957,-500.0,0.00020999,2]
[319516448,1710816632966,-500.0,0.00020999,2]
[319516449,1710816632975,-500.0,0.00020999,2]
[319516450,1710816632984,-500.0,0.00020999,2]
[319516451,1710816632993,-500.0,0.00020999,2]
[319516452,1710816633002,-500.0,0.00020999,2]
[319516453,1710816633010,-500.0,0.00020999,2]
[319516454,1710816633020,-500.0,0.00020999,2]
[319516455,1710816633029,-500.0,0.00020999,2]
[319516456,1710816633038,-160.4,0.00020999,2]
[319516457,1710816633047,-500.0,0.00020999,2]
[319516458,1710816633056,-500.0,0.00020999,2]
[319516459,1710816633064,-500.0,0.00020999,2]
[319516460,1710816633073,-500.0,0.00020999,2]
[319516461,1710816633082,-500.0,0.00020999,2]
[319516462,1710816633091,-417.91704154,0.00020999,2]
[319516463,1710816633100,-29469.1504751,0.00021,5]
[319516571,1710816638797,-8844.9489714,0.00021,5]
[319516574,1710816638809,-3509.37688172,0.00021,5]
[319516581,1710816638867,-1057.01670368,0.00021,5]
[319516784,1710816640861,-66384.47090423,0.00021,5]
[319517081,1710816643979,-294.35424866,0.00021,5]
[319518493,1710816743393,703.41966566,0.00019,2]
[319518502,1710816965163,298.640029,0.00018629,2]
[319518503,1710817415053,647.58526845,0.00024626,120]
[319518784,1710817839985,-187.5384845,0.00019177,2]
[319518786,1710817839995,-697.68374264,0.00019178,2]
[319518788,1710817840004,-12734.3960886,0.00019974,2]
[319518790,1710817840013,-155.0,0.00020548,2]
[319518792,1710817840024,-285.22308522,0.000209,2]
[319518794,1710817840033,-155.80068588,0.00020998,2]
[319518796,1710817840043,-1956.84789488,0.00020998,2]
[319518798,1710817840055,-748.56889485,0.00020998,2]
[319518801,1710817840065,-1083.67520015,0.00020998,2]
[319518802,1710817840075,-332.89510471,0.00020998,2]
[319518804,1710817840085,-3232.07876034,0.00020998,2]
[319518806,1710817840094,-169.68224852,0.00020998,2]
[319518809,1710817840104,-551.16066515,0.00020998,2]
[319518811,1710817840114,-758.35126014,0.00020998,2]
[319518813,1710817840124,-933.80097195,0.00020998,2]
[319518815,1710817840133,-340.67513156,0.00020998,2]
[319518817,1710817840142,-315.42738509,0.00020998,2]
[319518819,1710817840151,-300.0776367,0.00020998,2]
[319518821,1710817840160,-155.59443363,0.00020998,2]
[319518823,1710817840170,-1097.60906143,0.00020999,2]
[319518825,1710817840179,-177.57274636,0.00020999,2]
[319518827,1710817840188,-500.0,0.00020999,2]
[319518829,1710817840197,-500.0,0.00020999,2]
[319518830,1710817840206,-608.04986181,0.00020999,2]
[319518832,1710817840215,-500.0,0.00020999,2]
[319518834,1710817840224,-502.71193155,0.00020999,2]
[319518836,1710817840233,-300.0867146,0.00020999,2]
[319518838,1710817840242,-500.0,0.00020999,2]
[319518840,1710817840251,-500.0,0.00020999,2]
[319518842,1710817840260,-500.0,0.00020999,2]
[319518844,1710817840269,-500.0,0.00020999,2]
[319518846,1710817840278,-502.29602982,0.00020999,2]
[319518848,1710817840289,-500.0,0.00020999,2]
[319518851,1710817840301,-500.78932778,0.00020999,2]
[319518853,1710817840311,-500.0,0.00020999,2]
[319518855,1710817840320,-501.15999623,0.00020999,2]